[Event "*** Qualifier 2: Titled Tuesday 3|2 Blitz"]
[Site "Chess.com"]
[Date "2017.04.11"]
[Round "2"]
[White "Gabrielian_Artur"]
[Black "Gabix_94"]
[Result "1/2-1/2"]
[WhiteElo "2614"]
[BlackElo "2515"]
[TimeControl "180+2"]
[EndTime "13:25:29 PDT"]
[Termination "Game drawn by repetition"]

1. e4 {[%clk 0:03:02]} 1... c5 {[%clk 0:03:00.6]} 2. Nf3 {[%clk 0:03:02.5]} 2...
d6 {[%clk 0:02:59.5]} 3. d4 {[%clk 0:03:03.5]} 3... cxd4 {[%clk 0:02:57.5]} 4.
Nxd4 {[%clk 0:03:05]} 4... Nf6 {[%clk 0:02:52.5]} 5. Nc3 {[%clk 0:03:06]} 5...
Nc6 {[%clk 0:02:52]} 6. Bg5 {[%clk 0:03:05.9]} 6... Bd7 {[%clk 0:02:52.8]} 7.
Qd2 {[%clk 0:03:06.3]} 7... Nxd4 {[%clk 0:02:52.9]} 8. Qxd4 {[%clk 0:03:06.8]}
8... Qa5 {[%clk 0:02:54.8]} 9. f4 {[%clk 0:03:05.5]} 9... e5 {[%clk 0:02:53.9]}
10. Qd2 {[%clk 0:03:02.5]} 10... Be7 {[%clk 0:02:52.5]} 11. O-O-O {[%clk
0:02:57.1]} 11... Bc6 {[%clk 0:02:53.4]} 12. Kb1 {[%clk 0:02:54.7]} 12... exf4
{[%clk 0:02:49]} 13. Bxf4 {[%clk 0:02:50.8]} 13... Qb6 {[%clk 0:02:31.3]} 14.
Bc4 {[%clk 0:02:25.9]} 14... O-O {[%clk 0:02:27.5]} 15. Rhe1 {[%clk 0:02:25.1]}
15... Rad8 {[%clk 0:02:22]} 16. Bb3 {[%clk 0:02:25.6]} 16... Ng4 {[%clk
0:02:10.1]} 17. Qe2 {[%clk 0:02:14.2]} 17... Ne5 {[%clk 0:02:07.5]} 18. Be3
{[%clk 0:02:10.6]} 18... Qc7 {[%clk 0:02:04.3]} 19. Bd4 {[%clk 0:02:09.3]} 19...
a5 {[%clk 0:01:58]} 20. Nd5 {[%clk 0:02:07.4]} 20... Bxd5 {[%clk 0:01:58.1]} 21.
Bxd5 {[%clk 0:02:08.4]} 21... Bf6 {[%clk 0:01:50.7]} 22. Rf1 {[%clk 0:02:08.8]}
22... Qe7 {[%clk 0:01:50.4]} 23. c3 {[%clk 0:02:06.1]} 23... Rfe8 {[%clk
0:01:41.5]} 24. g3 {[%clk 0:02:03.9]} 24... Kh8 {[%clk 0:01:38.3]} 25. h4 {[%clk
0:02:03.9]} 25... Nd7 {[%clk 0:01:28.4]} 26. Be3 {[%clk 0:02:03]} 26... Rf8
{[%clk 0:01:25.7]} 27. Qf2 {[%clk 0:01:52.7]} 27... Ne5 {[%clk 0:01:23.5]} 28.
Qf5 {[%clk 0:01:53.2]} 28... a4 {[%clk 0:01:21.9]} 29. a3 {[%clk 0:01:50.9]}
29... Nd7 {[%clk 0:01:20.5]} 30. Bf4 {[%clk 0:01:43.8]} 30... Be5 {[%clk
0:01:20.9]} 31. Bg5 {[%clk 0:01:44.5]} 31... f6 {[%clk 0:01:22.3]} 32. Bc1
{[%clk 0:01:45]} 32... Bxg3 {[%clk 0:01:19.7]} 33. h5 {[%clk 0:01:46.2]} 33...
Be5 {[%clk 0:01:19.7]} 34. Rg1 {[%clk 0:01:45]} 34... Nb6 {[%clk 0:01:17.1]} 35.
Ba2 {[%clk 0:01:44.5]} 35... Qd7 {[%clk 0:01:12.7]} 36. Qf2 {[%clk 0:01:43.5]}
36... Qc6 {[%clk 0:01:07.9]} 37. Rg4 {[%clk 0:01:41]} 37... d5 {[%clk
0:00:53.6]} 38. Rdg1 {[%clk 0:01:39.9]} 38... f5 {[%clk 0:00:54.1]} 39. exf5
{[%clk 0:01:39.6]} 39... Nc4 {[%clk 0:00:48]} 40. Qg2 {[%clk 0:01:20.2]} 40...
Qf6 {[%clk 0:00:45.4]} 41. Rf1 {[%clk 0:01:14.7]} 41... b5 {[%clk 0:00:43.6]}
42. h6 {[%clk 0:01:12.5]} 42... gxh6 {[%clk 0:00:43.8]} 43. Qh3 {[%clk
0:01:05.8]} 43... Rg8 {[%clk 0:00:43.1]} 44. Rxg8+ {[%clk 0:00:53.8]} 44... Rxg8
{[%clk 0:00:44]} 45. Bxh6 {[%clk 0:00:54.6]} 45... Rg3 {[%clk 0:00:45]} 46. Qh5
{[%clk 0:00:48.5]} 46... Rg8 {[%clk 0:00:39.6]} 47. Bc1 {[%clk 0:00:48.3]} 47...
d4 {[%clk 0:00:34.4]} 48. Rh1 {[%clk 0:00:46]} 48... Qg7 {[%clk 0:00:33.8]} 49.
Bh6 {[%clk 0:00:31.5]} 49... Qg2 {[%clk 0:00:29.1]} 50. Bc1 {[%clk 0:00:25.2]}
50... Qg7 {[%clk 0:00:27.5]} 51. cxd4 {[%clk 0:00:22.7]} 51... Bxd4 {[%clk
0:00:28.4]} 52. Qe2 {[%clk 0:00:24.1]} 52... Bf6 {[%clk 0:00:27.4]} 53. Bxc4
{[%clk 0:00:24]} 53... bxc4 {[%clk 0:00:29.3]} 54. Qxc4 {[%clk 0:00:25.2]} 54...
Rb8 {[%clk 0:00:29.6]} 55. Rh2 {[%clk 0:00:24.6]} 55... Be5 {[%clk 0:00:28.3]}
56. Rc2 {[%clk 0:00:24.8]} 56... Qf6 {[%clk 0:00:28.4]} 57. Qxa4 {[%clk
0:00:25.5]} 57... Qxf5 {[%clk 0:00:29.8]} 58. Qc4 {[%clk 0:00:21.5]} 58... Bg7
{[%clk 0:00:28.2]} 59. a4 {[%clk 0:00:22.2]} 59... h6 {[%clk 0:00:27.6]} 60. Ka2
{[%clk 0:00:23.1]} 60... Ra8 {[%clk 0:00:25.4]} 61. b3 {[%clk 0:00:23.7]} 61...
Rd8 {[%clk 0:00:23.1]} 62. Bb2 {[%clk 0:00:24]} 62... Bxb2 {[%clk 0:00:20.2]}
63. Rxb2 {[%clk 0:00:25.5]} 63... Qf6 {[%clk 0:00:21.1]} 64. a5 {[%clk
0:00:25.2]} 64... Qe5 {[%clk 0:00:21.2]} 65. b4 {[%clk 0:00:25.9]} 65... Rd4
{[%clk 0:00:22.4]} 66. Qc8+ {[%clk 0:00:25.7]} 66... Kh7 {[%clk 0:00:23.9]} 67.
Qb7+ {[%clk 0:00:23.1]} 67... Kh8 {[%clk 0:00:25.3]} 68. Qa8+ {[%clk 0:00:23.6]}
68... Kh7 {[%clk 0:00:26.4]} 69. Qc6 {[%clk 0:00:24]} 69... Qe7 {[%clk 0:00:25]}
70. Qc3 {[%clk 0:00:23.1]} 70... Qe6+ {[%clk 0:00:25.6]} 71. Qb3 {[%clk
0:00:23.9]} 71... Qe7 {[%clk 0:00:23.3]} 72. a6 {[%clk 0:00:24]} 72... Qe4
{[%clk 0:00:20.9]} 73. Qf7+ {[%clk 0:00:21.9]} 73... Kh8 {[%clk 0:00:21.9]} 74.
Qf8+ {[%clk 0:00:22.8]} 74... Kh7 {[%clk 0:00:23.1]} 75. Qf7+ {[%clk 0:00:24.1]}
75... Kh8 {[%clk 0:00:24.5]} 76. a7 {[%clk 0:00:25.5]} 76... Rd1 {[%clk
0:00:18.9]} 77. Qf6+ {[%clk 0:00:21.8]} 77... Kh7 {[%clk 0:00:19.1]} 78. Qf7+
{[%clk 0:00:22.9]} 78... Kh8 {[%clk 0:00:20.6]} 79. Qf8+ {[%clk 0:00:18.8]}
79... Kh7 {[%clk 0:00:22]} 80. a8=Q {[%clk 0:00:19.5]} 80... Qc4+ {[%clk
0:00:22.7]} 81. Rb3 {[%clk 0:00:20]} 81... Qc2+ {[%clk 0:00:23.6]} 82. Rb2
{[%clk 0:00:21.3]} 82... Qc4+ {[%clk 0:00:24.9]} 83. Rb3 {[%clk 0:00:22.7]}
83... Qc2+ {[%clk 0:00:25.8]} 84. Rb2 {[%clk 0:00:24.3]} 84... Qc4+ {[%clk
0:00:25.9]} 85. Rb3 {[%clk 0:00:25.4]} 85... Qc2+ {[%clk 0:00:22]} 1/2-1/2

[Event "*** Qualifier 2: Titled Tuesday 3|2 Blitz"]
[Site "Chess.com"]
[Date "2017.04.11"]
[Round "2"]
[White "Winehouse83"]
[Black "Abrito99"]
[Result "1/2-1/2"]
[WhiteElo "2312"]
[BlackElo "2337"]
[TimeControl "180+2"]
[EndTime "13:25:43 PDT"]
[Termination "Game drawn - insufficient material"]

1. d4 {[%clk 0:03:02]} 1... Nf6 {[%clk 0:02:59.9]} 2. Bf4 {[%clk 0:03:01.9]}
2... g6 {[%clk 0:02:59.5]} 3. e3 {[%clk 0:03:02.9]} 3... Bg7 {[%clk 0:03:00.8]}
4. Bd3 {[%clk 0:03:03.8]} 4... d6 {[%clk 0:03:02.2]} 5. Nd2 {[%clk 0:03:04.3]}
5... Nbd7 {[%clk 0:03:01]} 6. Ngf3 {[%clk 0:03:04.3]} 6... O-O {[%clk
0:03:01.5]} 7. Qe2 {[%clk 0:03:03.2]} 7... Re8 {[%clk 0:02:47.1]} 8. Bg5 {[%clk
0:02:54.7]} 8... e5 {[%clk 0:02:46.6]} 9. dxe5 {[%clk 0:02:53.7]} 9... dxe5
{[%clk 0:02:47.8]} 10. O-O {[%clk 0:02:41.9]} 10... h6 {[%clk 0:02:46.1]} 11.
Bxf6 {[%clk 0:02:21.8]} 11... Nxf6 {[%clk 0:02:45.1]} 12. e4 {[%clk 0:02:20.4]}
12... c6 {[%clk 0:02:38.3]} 13. Rfd1 {[%clk 0:02:17]} 13... Qc7 {[%clk
0:02:37.2]} 14. Qe1 {[%clk 0:02:13.7]} 14... Be6 {[%clk 0:02:16.8]} 15. Bc4
{[%clk 0:02:11.2]} 15... Bg4 {[%clk 0:02:08.3]} 16. h3 {[%clk 0:02:11.3]} 16...
Bd7 {[%clk 0:02:08.8]} 17. Nh4 {[%clk 0:01:58.3]} 17... Be6 {[%clk 0:01:55.3]}
18. Bxe6 {[%clk 0:01:45.1]} 18... Rxe6 {[%clk 0:01:57.2]} 19. Nb3 {[%clk
0:01:40.5]} 19... Bf8 {[%clk 0:01:48]} 20. Qe3 {[%clk 0:01:33.1]} 20... b6
{[%clk 0:01:20.2]} 21. Rd2 {[%clk 0:01:20.9]} 21... Rd6 {[%clk 0:01:14.1]} 22.
Rad1 {[%clk 0:01:19.6]} 22... Rad8 {[%clk 0:01:14.6]} 23. Nf3 {[%clk 0:01:05.1]}
23... Qe7 {[%clk 0:00:52]} 24. g3 {[%clk 0:00:54.3]} 24... Qe6 {[%clk
0:00:52.3]} 25. Kg2 {[%clk 0:00:54.4]} 25... c5 {[%clk 0:00:48.3]} 26. Rxd6
{[%clk 0:00:52.5]} 26... Rxd6 {[%clk 0:00:48.2]} 27. Rxd6 {[%clk 0:00:51.7]}
27... Qxd6 {[%clk 0:00:47.9]} 28. Nbd2 {[%clk 0:00:52.7]} 28... b5 {[%clk
0:00:48.1]} 29. a4 {[%clk 0:00:52.1]} 29... a6 {[%clk 0:00:48]} 30. axb5 {[%clk
0:00:49.2]} 30... axb5 {[%clk 0:00:49.1]} 31. Qb3 {[%clk 0:00:50.6]} 31... Qb8
{[%clk 0:00:46.8]} 32. Nc4 {[%clk 0:00:46.6]} 32... Nxe4 {[%clk 0:00:47.4]} 33.
Ncxe5 {[%clk 0:00:47.4]} 33... Qb7 {[%clk 0:00:46.9]} 34. Qd3 {[%clk 0:00:24.4]}
34... Ng5 {[%clk 0:00:38.4]} 35. h4 {[%clk 0:00:21.4]} 35... c4 {[%clk
0:00:36.8]} 36. Qd7 {[%clk 0:00:19.5]} 36... Qxd7 {[%clk 0:00:31.9]} 37. Nxd7
{[%clk 0:00:21.4]} 37... Ne4 {[%clk 0:00:28]} 38. b3 {[%clk 0:00:21.5]} 38...
Bd6 {[%clk 0:00:25]} 39. bxc4 {[%clk 0:00:20.7]} 39... bxc4 {[%clk 0:00:26.9]}
40. Nb6 {[%clk 0:00:21.7]} 40... c3 {[%clk 0:00:27.1]} 41. Nd5 {[%clk
0:00:22.5]} 41... Bc5 {[%clk 0:00:25.8]} 42. Ng1 {[%clk 0:00:14.3]} 42... f5
{[%clk 0:00:23.9]} 43. Ne2 {[%clk 0:00:13]} 43... Nxf2 {[%clk 0:00:19.8]} 44.
Ndxc3 {[%clk 0:00:13.6]} 44... Ng4 {[%clk 0:00:20.3]} 45. Nd5 {[%clk 0:00:13.4]}
45... Kf8 {[%clk 0:00:20.4]} 46. Nef4 {[%clk 0:00:14.4]} 46... Kf7 {[%clk
0:00:21.4]} 47. Kf3 {[%clk 0:00:13.6]} 47... g5 {[%clk 0:00:22.9]} 48. hxg5
{[%clk 0:00:14.8]} 48... hxg5 {[%clk 0:00:24.8]} 49. Nd3 {[%clk 0:00:15.6]}
49... Bd4 {[%clk 0:00:24.7]} 50. c4 {[%clk 0:00:15.8]} 50... Ke6 {[%clk
0:00:25.1]} 51. N5b4 {[%clk 0:00:15.7]} 51... Kd6 {[%clk 0:00:25.5]} 52. Nc2
{[%clk 0:00:15.7]} 52... Bc5 {[%clk 0:00:24.2]} 53. Na1 {[%clk 0:00:17]} 53...
Bd4 {[%clk 0:00:20.1]} 54. Nb3 {[%clk 0:00:17.2]} 54... Bc3 {[%clk 0:00:20.7]}
55. c5+ {[%clk 0:00:16.1]} 55... Kc6 {[%clk 0:00:22.3]} 56. Nbc1 {[%clk
0:00:14]} 56... Nf6 {[%clk 0:00:22.2]} 57. Ne2 {[%clk 0:00:14.8]} 57... Ba1
{[%clk 0:00:23.8]} 58. Ng1 {[%clk 0:00:12.4]} 58... Nd5 {[%clk 0:00:24.7]} 59.
g4 {[%clk 0:00:12]} 59... f4 {[%clk 0:00:24.5]} 60. Ke4 {[%clk 0:00:13.2]} 60...
Bf6 {[%clk 0:00:22.3]} 61. Nf3 {[%clk 0:00:13.7]} 61... Ne7 {[%clk 0:00:20.7]}
62. Nfe5+ {[%clk 0:00:05.1]} 62... Kb5 {[%clk 0:00:22.1]} 63. Nf3 {[%clk
0:00:03.5]} 63... Kc4 {[%clk 0:00:23.3]} 64. Nde5+ {[%clk 0:00:04.2]} 64... Kxc5
{[%clk 0:00:23.7]} 65. Nf7 {[%clk 0:00:04.5]} 65... Kc6 {[%clk 0:00:22.1]} 66.
N7xg5 {[%clk 0:00:06.4]} 66... Bxg5 {[%clk 0:00:21.8]} 67. Nxg5 {[%clk
0:00:07.1]} 67... Ng6 {[%clk 0:00:22.1]} 68. Kf5 {[%clk 0:00:08.3]} 68... Ne7+
{[%clk 0:00:19.1]} 69. Kxf4 {[%clk 0:00:09.6]} 69... Kd6 {[%clk 0:00:20.5]} 70.
Nf7+ {[%clk 0:00:09.7]} 70... Ke6 {[%clk 0:00:21.1]} 71. Ne5 {[%clk 0:00:11.1]}
71... Nd5+ {[%clk 0:00:20.4]} 72. Ke4 {[%clk 0:00:12.6]} 72... Kf6 {[%clk
0:00:21.5]} 73. Nf3 {[%clk 0:00:11.9]} 73... Ne7 {[%clk 0:00:22.3]} 74. g5+
{[%clk 0:00:12.9]} 74... Kg7 {[%clk 0:00:23.6]} 75. Kf4 {[%clk 0:00:14.5]} 75...
Nd5+ {[%clk 0:00:24.3]} 76. Kf5 {[%clk 0:00:15.7]} 76... Ne7+ {[%clk 0:00:25.4]}
77. Ke6 {[%clk 0:00:15.3]} 77... Nc6 {[%clk 0:00:24.7]} 78. Nh4 {[%clk
0:00:15.4]} 78... Nd4+ {[%clk 0:00:24.9]} 79. Ke5 {[%clk 0:00:16.6]} 79... Nc6+
{[%clk 0:00:25.3]} 80. Kf4 {[%clk 0:00:17.7]} 80... Nd8 {[%clk 0:00:24.7]} 81.
Kg4 {[%clk 0:00:18.8]} 81... Nf7 {[%clk 0:00:24.4]} 82. Nf5+ {[%clk 0:00:18.6]}
82... Kf8 {[%clk 0:00:25.9]} 83. g6 {[%clk 0:00:19.1]} 83... Ne5+ {[%clk
0:00:27.4]} 84. Kg5 {[%clk 0:00:20.1]} 84... Nxg6 {[%clk 0:00:28.7]} 85. Kxg6
{[%clk 0:00:21.3]} 1/2-1/2

[Event "*** Qualifier 2: Titled Tuesday 3|2 Blitz"]
[Site "Chess.com"]
[Date "2017.04.11"]
[Round "3"]
[White "Kozok"]
[Black "GamayevOleg"]
[Result "1-0"]
[WhiteElo "2294"]
[BlackElo "2394"]
[TimeControl "180+2"]
[EndTime "13:31:44 PDT"]
[Termination "Kozok won by resignation"]

1. e4 {[%clk 0:03:02]} 1... e6 {[%clk 0:03:01.4]} 2. d4 {[%clk 0:03:03]} 2... d5
{[%clk 0:03:02.7]} 3. Nc3 {[%clk 0:03:04.7]} 3... Nf6 {[%clk 0:03:03.4]} 4. e5
{[%clk 0:03:06.4]} 4... Nfd7 {[%clk 0:03:04.6]} 5. f4 {[%clk 0:03:08]} 5... c5
{[%clk 0:03:05.9]} 6. Nf3 {[%clk 0:03:09.7]} 6... Nc6 {[%clk 0:03:06.7]} 7. Be3
{[%clk 0:03:11.3]} 7... a6 {[%clk 0:02:52.2]} 8. Qd2 {[%clk 0:03:09.9]} 8... b5
{[%clk 0:02:53.1]} 9. Be2 {[%clk 0:03:11.2]} 9... Qb6 {[%clk 0:02:53.4]} 10. O-O
{[%clk 0:03:05.9]} 10... cxd4 {[%clk 0:02:54.3]} 11. Nxd4 {[%clk 0:03:04.5]}
11... Nxd4 {[%clk 0:02:55.5]} 12. Bxd4 {[%clk 0:03:05.5]} 12... Qxd4+ {[%clk
0:02:56.3]} 13. Qxd4 {[%clk 0:03:06.5]} 13... Bc5 {[%clk 0:02:57.8]} 14. Qxc5
{[%clk 0:03:08]} 14... Nxc5 {[%clk 0:02:59.6]} 15. Bf3 {[%clk 0:03:03.4]} 15...
Ke7 {[%clk 0:02:57.9]} 16. b4 {[%clk 0:02:58.2]} 16... Nb7 {[%clk 0:02:58.2]}
17. a4 {[%clk 0:02:59.3]} 17... Bd7 {[%clk 0:02:59.6]} 18. axb5 {[%clk
0:03:00.6]} 18... Bxb5 {[%clk 0:03:00.5]} 19. Nxb5 {[%clk 0:03:00.2]} 19... axb5
{[%clk 0:03:02.4]} 20. Be2 {[%clk 0:03:01.4]} 20... Kd7 {[%clk 0:02:57]} 21.
Bxb5+ {[%clk 0:03:01.9]} 21... Kc7 {[%clk 0:02:58.4]} 22. c4 {[%clk 0:02:58.4]}
22... dxc4 {[%clk 0:02:58.2]} 23. Bxc4 {[%clk 0:02:57.5]} 23... Kb6 {[%clk
0:02:59.7]} 24. Rfd1 {[%clk 0:02:32.9]} 24... Rxa1 {[%clk 0:02:46]} 25. Rxa1
{[%clk 0:02:34.8]} 25... Rc8 {[%clk 0:02:45.9]} 26. Bd3 {[%clk 0:02:31]} 26...
Rc3 {[%clk 0:02:42.6]} 27. Bxh7 {[%clk 0:02:31.8]} 27... Rb3 {[%clk 0:02:38.4]}
28. Bg8 {[%clk 0:02:28.5]} 28... Rxb4 {[%clk 0:02:36.2]} 29. Bxf7 {[%clk
0:02:29.6]} 29... Rxf4 {[%clk 0:02:37.6]} 30. Bxe6 {[%clk 0:02:30.9]} 30... Re4
{[%clk 0:02:38.9]} 31. Bd5 {[%clk 0:02:32.1]} 31... Rxe5 {[%clk 0:02:37.3]} 32.
Rb1+ {[%clk 0:02:32.1]} 32... Kc5 {[%clk 0:02:38.3]} 33. Bxb7 {[%clk 0:02:32.7]}
1-0

[Event "*** Qualifier 2: Titled Tuesday 3|2 Blitz"]
[Site "Chess.com"]
[Date "2017.04.11"]
[Round "3"]
[White "LawrenceTrent"]
[Black "VMikhalevski"]
[Result "1-0"]
[WhiteElo "2393"]
[BlackElo "2527"]
[TimeControl "180+2"]
[EndTime "13:33:38 PDT"]
[Termination "LawrenceTrent won by resignation"]

1. e4 {[%clk 0:03:02]} 1... e5 {[%clk 0:03:00.5]} 2. Nf3 {[%clk 0:03:03]} 2...
Nc6 {[%clk 0:03:02]} 3. d3 {[%clk 0:03:04.2]} 3... Nf6 {[%clk 0:03:01.7]} 4. g3
{[%clk 0:03:05.5]} 4... d5 {[%clk 0:03:01.7]} 5. exd5 {[%clk 0:03:06.9]} 5...
Nxd5 {[%clk 0:03:02.9]} 6. Bg2 {[%clk 0:03:08.3]} 6... Bc5 {[%clk 0:03:02.2]} 7.
O-O {[%clk 0:03:08.9]} 7... O-O {[%clk 0:03:01.9]} 8. Re1 {[%clk 0:03:08.3]}
8... Re8 {[%clk 0:02:59.7]} 9. Nbd2 {[%clk 0:03:05.1]} 9... Bf8 {[%clk
0:02:54.5]} 10. h3 {[%clk 0:03:05.6]} 10... f6 {[%clk 0:02:51.6]} 11. Ne4 {[%clk
0:03:05.4]} 11... Bf5 {[%clk 0:02:48.1]} 12. a3 {[%clk 0:03:00]} 12... a5 {[%clk
0:02:47.7]} 13. c4 {[%clk 0:02:48.8]} 13... Nb6 {[%clk 0:02:43.5]} 14. Nh4
{[%clk 0:02:45.3]} 14... Be6 {[%clk 0:02:42.1]} 15. Be3 {[%clk 0:02:39.5]} 15...
Nd4 {[%clk 0:02:39.2]} 16. Nf3 {[%clk 0:02:40.5]} 16... Nf5 {[%clk 0:02:36.7]}
17. Bc5 {[%clk 0:02:27.7]} 17... Bf7 {[%clk 0:02:23.1]} 18. g4 {[%clk
0:02:12.3]} 18... Bxc5 {[%clk 0:02:05.4]} 19. Nxc5 {[%clk 0:02:05.7]} 19... Nd4
{[%clk 0:02:06.3]} 20. Nxb7 {[%clk 0:02:01.5]} 20... Nxf3+ {[%clk 0:02:04.3]}
21. Bxf3 {[%clk 0:02:00.8]} 21... Qd4 {[%clk 0:02:02.9]} 22. Qc2 {[%clk
0:01:54.2]} 22... Bg6 {[%clk 0:02:01.4]} 23. Be4 {[%clk 0:01:52.9]} 23... a4
{[%clk 0:01:52.8]} 24. c5 {[%clk 0:01:51.4]} 24... Nd5 {[%clk 0:01:37.9]} 25.
Bxg6 {[%clk 0:01:48.1]} 25... hxg6 {[%clk 0:01:36.5]} 26. Re4 {[%clk 0:01:48.9]}
26... Ne3 {[%clk 0:01:30.5]} 27. fxe3 {[%clk 0:01:47.4]} 27... Qd5 {[%clk
0:01:31.4]} 28. Qc4 {[%clk 0:01:48.3]} 28... c6 {[%clk 0:01:30.5]} 29. Nd6
{[%clk 0:01:48.5]} 29... Reb8 {[%clk 0:01:30.4]} 30. Qxd5+ {[%clk 0:01:48.9]}
30... cxd5 {[%clk 0:01:31]} 31. Rb4 {[%clk 0:01:50.6]} 31... Kf8 {[%clk
0:01:28.9]} 32. Rxb8+ {[%clk 0:01:45.6]} 32... Rxb8 {[%clk 0:01:29.3]} 33. c6
{[%clk 0:01:47.2]} 1-0

[Event "*** Qualifier 2: Titled Tuesday 3|2 Blitz"]
[Site "Chess.com"]
[Date "2017.04.11"]
[Round "3"]
[White "Cecile_Haussernot"]
[Black "jlandaw"]
[Result "1-0"]
[WhiteElo "2286"]
[BlackElo "2382"]
[TimeControl "180+2"]
[EndTime "13:33:46 PDT"]
[Termination "Cecile_Haussernot won by resignation"]

1. e4 {[%clk 0:03:02]} 1... e5 {[%clk 0:03:00.6]} 2. Nf3 {[%clk 0:03:00.7]} 2...
Nc6 {[%clk 0:03:01.7]} 3. d4 {[%clk 0:03:00.6]} 3... exd4 {[%clk 0:03:02.6]} 4.
Nxd4 {[%clk 0:02:59.9]} 4... Nf6 {[%clk 0:03:00.9]} 5. Nxc6 {[%clk 0:02:57.7]}
5... bxc6 {[%clk 0:03:02.8]} 6. e5 {[%clk 0:02:57.4]} 6... Qe7 {[%clk
0:03:03.5]} 7. Qe2 {[%clk 0:02:57]} 7... Nd5 {[%clk 0:03:02.1]} 8. c4 {[%clk
0:02:55.7]} 8... Ba6 {[%clk 0:03:03.1]} 9. b3 {[%clk 0:02:51.7]} 9... g5 {[%clk
0:03:00.2]} 10. Ba3 {[%clk 0:02:47.1]} 10... Nb4 {[%clk 0:02:59]} 11. Bb2 {[%clk
0:02:44.2]} 11... Bg7 {[%clk 0:02:54.1]} 12. a3 {[%clk 0:02:43.3]} 12... Nd5
{[%clk 0:02:42.4]} 13. g3 {[%clk 0:02:34.4]} 13... O-O {[%clk 0:01:43.4]} 14.
Nd2 {[%clk 0:02:18.9]} 14... Rab8 {[%clk 0:01:32.8]} 15. h4 {[%clk 0:02:15.2]}
15... Rfe8 {[%clk 0:01:14.9]} 16. O-O-O {[%clk 0:02:02.5]} 16... Nb6 {[%clk
0:00:43.8]} 17. hxg5 {[%clk 0:02:00.7]} 17... Bxe5 {[%clk 0:00:43.4]} 18. Qh5
{[%clk 0:01:55]} 18... Bxb2+ {[%clk 0:00:36.9]} 19. Kxb2 {[%clk 0:01:53.4]}
19... Na4+ {[%clk 0:00:37.3]} 20. Kc2 {[%clk 0:01:51.1]} 20... Qxa3 {[%clk
0:00:27.6]} 21. Qxh7+ {[%clk 0:01:48.8]} 21... Kf8 {[%clk 0:00:29.2]} 22. Qh8+
{[%clk 0:01:50.1]} 22... Ke7 {[%clk 0:00:30.5]} 23. Qf6+ {[%clk 0:01:51.7]} 1-0

[Event "*** Qualifier 2: Titled Tuesday 3|2 Blitz"]
[Site "Chess.com"]
[Date "2017.04.11"]
[Round "3"]
[White "afgano29"]
[Black "bilelou"]
[Result "1-0"]
[WhiteElo "2384"]
[BlackElo "2334"]
[TimeControl "180+2"]
[EndTime "13:34:05 PDT"]
[Termination "afgano29 won by resignation"]

1. e4 {[%clk 0:03:02]} 1... c5 {[%clk 0:03:01.5]} 2. Nf3 {[%clk 0:03:02.4]} 2...
d6 {[%clk 0:03:03.1]} 3. d4 {[%clk 0:03:02.8]} 3... cxd4 {[%clk 0:03:04.8]} 4.
Nxd4 {[%clk 0:03:04.4]} 4... Nf6 {[%clk 0:03:06.5]} 5. Nc3 {[%clk 0:03:05.2]}
5... a6 {[%clk 0:03:08]} 6. Bg5 {[%clk 0:03:05.7]} 6... Nbd7 {[%clk 0:03:09.5]}
7. Bc4 {[%clk 0:03:04.9]} 7... Qb6 {[%clk 0:03:10.3]} 8. Bb3 {[%clk 0:03:01.6]}
8... e6 {[%clk 0:03:11.4]} 9. Qd2 {[%clk 0:03:01.6]} 9... Be7 {[%clk 0:03:12.9]}
10. O-O-O {[%clk 0:03:01.9]} 10... Qc7 {[%clk 0:03:07.1]} 11. Rhe1 {[%clk
0:03:01.9]} 11... Nc5 {[%clk 0:03:00.7]} 12. Kb1 {[%clk 0:02:56.6]} 12... Rb8
{[%clk 0:02:56.9]} 13. f4 {[%clk 0:02:53]} 13... h6 {[%clk 0:02:49.4]} 14. Bxf6
{[%clk 0:02:46.9]} 14... Bxf6 {[%clk 0:02:49.9]} 15. e5 {[%clk 0:02:48.2]} 15...
dxe5 {[%clk 0:02:50.2]} 16. fxe5 {[%clk 0:02:49.3]} 16... Bg5 {[%clk 0:02:51]}
17. Qf2 {[%clk 0:02:46.8]} 17... b5 {[%clk 0:02:46.3]} 18. h4 {[%clk 0:02:45.3]}
18... Be7 {[%clk 0:02:38.7]} 19. Nf5 {[%clk 0:02:29.5]} 19... exf5 {[%clk
0:02:22.1]} 20. Nd5 {[%clk 0:02:29.8]} 20... Qb7 {[%clk 0:02:22]} 21. Nf6+
{[%clk 0:02:15.4]} 21... Kf8 {[%clk 0:01:24.2]} 22. Rd6 {[%clk 0:01:59]} 22...
gxf6 {[%clk 0:01:15.8]} 23. Qxc5 {[%clk 0:01:57.8]} 23... Be6 {[%clk 0:00:59.1]}
24. exf6 {[%clk 0:01:53.3]} 24... Bxd6 {[%clk 0:00:32]} 25. Qxd6+ {[%clk
0:01:53]} 25... Kg8 {[%clk 0:00:32.9]} 26. Qg3+ {[%clk 0:01:54.4]} 1-0

[Event "*** Qualifier 2: Titled Tuesday 3|2 Blitz"]
[Site "Chess.com"]
[Date "2017.04.11"]
[Round "3"]
[White "Vrolijk"]
[Black "amaidel"]
[Result "1-0"]
[WhiteElo "2299"]
[BlackElo "2449"]
[TimeControl "180+2"]
[EndTime "13:34:13 PDT"]
[Termination "Vrolijk won by checkmate"]

1. d4 {[%clk 0:03:02]} 1... f5 {[%clk 0:03:00.5]} 2. Nc3 {[%clk 0:03:01.6]} 2...
Nf6 {[%clk 0:03:01.1]} 3. Bg5 {[%clk 0:03:02.4]} 3... d5 {[%clk 0:02:47.6]} 4.
Bxf6 {[%clk 0:02:59.5]} 4... exf6 {[%clk 0:02:49.5]} 5. e3 {[%clk 0:02:58.7]}
5... Be6 {[%clk 0:02:49.8]} 6. a3 {[%clk 0:02:52]} 6... c6 {[%clk 0:02:49.9]} 7.
Bd3 {[%clk 0:02:50.2]} 7... g6 {[%clk 0:02:43.4]} 8. Nge2 {[%clk 0:02:39.6]}
8... Bd6 {[%clk 0:02:43]} 9. Nf4 {[%clk 0:02:32.5]} 9... Bxf4 {[%clk 0:02:43.4]}
10. exf4 {[%clk 0:02:34.4]} 10... O-O {[%clk 0:02:44.4]} 11. O-O {[%clk
0:02:35]} 11... Nd7 {[%clk 0:02:43.9]} 12. Re1 {[%clk 0:02:35]} 12... Bf7 {[%clk
0:02:44.5]} 13. Ne2 {[%clk 0:02:29.9]} 13... Re8 {[%clk 0:02:44.9]} 14. Qd2
{[%clk 0:02:30.7]} 14... Nf8 {[%clk 0:02:45]} 15. Rab1 {[%clk 0:02:23.5]} 15...
Ne6 {[%clk 0:02:45.2]} 16. b4 {[%clk 0:02:24.6]} 16... Qd7 {[%clk 0:02:40.3]}
17. c3 {[%clk 0:02:24.2]} 17... a5 {[%clk 0:02:35.9]} 18. Nc1 {[%clk 0:02:25.1]}
18... axb4 {[%clk 0:02:35.7]} 19. axb4 {[%clk 0:02:27]} 19... Re7 {[%clk
0:02:10]} 20. Nb3 {[%clk 0:02:23.5]} 20... Rae8 {[%clk 0:02:09.7]} 21. g3 {[%clk
0:02:24.8]} 21... b6 {[%clk 0:02:00.2]} 22. Ra1 {[%clk 0:02:22.8]} 22... Qb7
{[%clk 0:01:49.4]} 23. Ba6 {[%clk 0:02:08.6]} 23... Qc7 {[%clk 0:01:47.5]} 24.
Bf1 {[%clk 0:02:09.3]} 24... b5 {[%clk 0:01:40.9]} 25. Re3 {[%clk 0:02:04.5]}
25... Nd8 {[%clk 0:01:40]} 26. Rae1 {[%clk 0:02:03.3]} 26... Nb7 {[%clk
0:01:37.4]} 27. Nc5 {[%clk 0:01:55]} 27... Nd6 {[%clk 0:01:35.6]} 28. f3 {[%clk
0:01:56.3]} 28... Rxe3 {[%clk 0:01:31.3]} 29. Rxe3 {[%clk 0:01:57]} 29... Rxe3
{[%clk 0:01:30.8]} 30. Qxe3 {[%clk 0:01:58.1]} 30... Kf8 {[%clk 0:01:30.4]} 31.
Qe6 {[%clk 0:01:38.6]} 31... Qd8 {[%clk 0:01:17]} 32. Nd7+ {[%clk 0:01:35]}
32... Kg7 {[%clk 0:01:17.5]} 33. Qxd6 {[%clk 0:01:35.9]} 33... Be8 {[%clk
0:01:18.2]} 34. Qf8# {[%clk 0:01:35.3]} 1-0